bitfinex/quotes_BTCUSD_20230118
["timestamp","ask_amount","ask_price","bid_price","bid_amount"]
[1674074960989,1.295189,20703.0,20702.0,0.0087065]
[1674074961276,0.966042,20703.0,20702.0,0.0087065]
[1674074961735,0.966042,20703.0,20702.0,0.21138361]
[1674074962036,0.966042,20703.0,20702.0,0.51138361]
[1674074962600,0.966042,20703.0,20702.0,0.0087065]
[1674074962897,0.966042,20703.0,20702.0,0.3087065]
[1674074964027,0.966042,20703.0,20702.0,0.0087065]
[1674074964308,1.449123,20703.0,20702.0,0.32061072]
[1674074964609,1.449123,20703.0,20702.0,0.62911072]
[1674074965181,1.449123,20703.0,20702.0,0.0172065]
[1674074965678,1.9699632,20703.0,20702.0,0.0087065]
[1674074965691,1.9699632,20703.0,20700.0,0.02252352]
[1674074965965,0.327341,20702.0,20700.0,0.02252352]
[1674074966245,0.483081,20703.0,20700.0,0.02252352]
[1674074966523,1.449204,20701.0,20700.0,0.02252352]
[1674074967670,1.779202,20701.0,20700.0,0.02252352]
[1674074967955,1.779202,20701.0,20699.0,0.01761562]
[1674074967956,9.97747648,20700.0,20699.0,0.01761562]
[1674074968238,9.97747648,20700.0,20697.0,0.19265448]
[1674074968239,10.28625548,20700.0,20697.0,0.19265448]
[1674074968527,10.46056748,20700.0,20697.0,0.74905617]
[1674074968812,10.46056748,20700.0,20698.0,0.78570169]
[1674074969094,10.46056748,20700.0,20699.0,0.47720169]
[1674074969389,10.46056748,20700.0,20699.0,8.56640169]
[1674074969693,10.46056748,20700.0,20699.0,8.59710769]
[1674074969982,10.46056748,20700.0,20699.0,8.53220169]
[1674074970547,9.12496502,20700.0,20699.0,1.22652266]
[1674074970829,9.12496502,20700.0,20699.0,3.23608999]
[1674074970830,5.69583055,20700.0,20699.0,3.23608999]
[1674074971167,1.49016472,20700.0,20699.0,3.76619889]
[1674074971460,6e-05,20701.0,20699.0,3.51751817]
[1674074971745,0.482871,20710.0,20706.0,0.5036]
[1674074972476,0.482871,20710.0,20709.0,0.1307]
[1674074972479,0.482845,20711.0,20709.0,0.1307]
[1674074972710,0.482845,20711.0,20710.0,0.80192266]
[1674074972933,0.482845,20711.0,20710.0,1.13258166]
[1674074973170,0.482845,20711.0,20710.0,0.461059]
[1674074973437,0.482845,20711.0,20710.0,0.4389]
[1674074973693,0.482845,20711.0,20710.0,1.11042266]
[1674074973910,0.482833,20712.0,20710.0,1.14108066]
[1674074973911,0.482822,20712.0,20710.0,1.14108066]
[1674074974170,0.482784,20714.0,20711.0,0.94705669]
[1674074974423,0.482784,20714.0,20713.0,0.1307]
[1674074974692,0.482784,20714.0,20713.0,0.469845]
[1674074975368,0.482784,20714.0,20713.0,0.339145]
[1674074975608,0.482784,20714.0,20713.0,0.3]
[1674074975851,0.482784,20714.0,20711.0,0.1307]
[1674074976100,0.328863,20713.0,20709.0,0.1298]
[1674074976359,0.632784,20714.0,20710.0,0.0085]
[1674074976360,1.448448,20712.0,20710.0,0.0085]
[1674074976602,1.448448,20712.0,20711.0,0.030655]
[1674074976835,1.448443,20712.0,20711.0,0.039155]
[1674074977729,1.448443,20712.0,20709.0,0.1298]
[1674074978013,1.448443,20712.0,20710.0,0.0085]
[1674074978313,0.19829559,20711.0,20710.0,0.039155]
[1674074978831,0.19829559,20711.0,20706.0,0.1307]
[1674074978833,0.19829559,20711.0,20704.0,0.1307]
[1674074979128,0.19829559,20711.0,20702.0,1.2224]
[1674074979129,0.479945,20710.0,20702.0,1.2224]
[1674074979420,0.326457,20709.0,20702.0,1.54960169]
[1674074979699,1.44879,20707.0,20702.0,0.1301]
[1674074979997,0.15,20706.0,20702.0,0.1301]
[1674074980284,1.448937,20705.0,20702.0,0.1301]
[1674074981128,1.448937,20705.0,20702.0,0.90730169]
[1674074981647,1.448937,20705.0,20703.0,0.330682]
[1674074981927,0.965958,20705.0,20703.0,0.3]
[1674074982208,0.965958,20705.0,20704.0,0.030685]
[1674074982555,0.965958,20705.0,20704.0,0.039185]
[1674074982762,0.965958,20705.0,20704.0,0.039184]
[1674074983058,0.965958,20705.0,20704.0,0.0085]
[1674074983336,0.23849789,20704.0,20700.0,0.96433003]
[1674074983616,0.966052,20703.0,20700.0,1.44153172]
[1674074983921,0.966052,20703.0,20701.0,0.03069]
[1674074984211,1.449073,20703.0,20700.0,1.44153172]
[1674074984490,1.449073,20703.0,20700.0,1.31213172]
[1674074984769,1.449073,20703.0,20701.0,0.0085]
[1674074985693,1.449073,20703.0,20702.0,0.030694]
[1674074985979,1.449073,20703.0,20702.0,0.039194]
[1674074986253,1.449073,20703.0,20702.0,0.0085]
[1674074986551,1.449073,20703.0,20700.0,0.83493003]
[1674074986552,1.449073,20703.0,20701.0,0.0085]
[1674074987668,1.449073,20703.0,20702.0,0.030693]
[1674074988169,0.966052,20703.0,20702.0,0.08638]
[1674074988445,0.966052,20703.0,20702.0,0.59427469]
[1674074988446,0.483026,20703.0,20702.0,0.59427469]
[1674074988722,0.483026,20703.0,20702.0,0.89427469]
[1674074988999,0.483026,20703.0,20702.0,0.339193]
[1674074989524,0.483026,20703.0,20702.0,0.3]
[1674074989853,0.483026,20703.0,20702.0,0.0085]
[1674074990113,0.483026,20703.0,20701.0,0.3]
[1674074990989,1.14540146,20703.0,20700.0,0.83493003]
[1674074991271,1.14540146,20703.0,20699.0,0.5]
[1674074991549,1.14540146,20703.0,20700.0,0.0085]
[1674074991826,1.14540146,20703.0,20699.0,0.5]
[1674074992727,1.14540146,20703.0,20700.0,0.3]
[1674074993001,1.14540146,20703.0,20700.0,0.3085]
[1674074993327,1.14533448,20703.0,20700.0,0.3085]
[1674074993862,1.14533448,20703.0,20700.0,0.0085]
[1674074994129,1.14533448,20703.0,20699.0,0.5]
[1674074994407,0.324051,20702.0,20699.0,0.5]
[1674074994691,1.449204,20701.0,20699.0,0.5]
[1674074995222,1.449204,20701.0,20700.0,0.030702]
[1674074995492,1.449204,20701.0,20699.0,0.5]
[1674074996801,1.67535575,20701.0,20699.0,0.5]
[1674074997084,0.50585367,20700.0,20699.0,0.5]
[1674074997419,1.62203567,20700.0,20699.0,0.5]
[1674074997947,1.436019,20700.0,20699.0,0.5]
[1674074998205,1.66163705,20700.0,20699.0,0.5]
[1674074999036,1.36163705,20700.0,20699.0,0.4]
[1674074999040,1.21163705,20700.0,20699.0,0.4]
[1674074999610,1.36163705,20700.0,20699.0,0.4]
[1674075000224,1.21163705,20700.0,20699.0,0.4]
[1674075000516,0.15,20699.0,20693.0,0.01931992]
[1674075000811,0.322505,20698.0,20693.0,0.01931992]
[1674075001087,0.1307,20695.0,20693.0,0.01931992]
[1674075001496,2.26879,20694.0,20693.0,0.01931992]
[1674075001729,2.26879,20694.0,20693.0,0.01431992]
[1674075002467,1.449693,20694.0,20693.0,0.01431992]
[1674075003243,1.757418,20694.0,20693.0,0.01431992]
[1674075003719,1.757418,20694.0,20693.0,0.21714089]
[1674075003720,1.449693,20694.0,20693.0,0.21714089]
[1674075003951,1.449693,20694.0,20693.0,0.01431992]
[1674075004186,1.449693,20694.0,20693.0,0.02281992]
[1674075004414,1.449693,20694.0,20693.0,0.10069992]
[1674075004899,0.966462,20694.0,20693.0,0.10069992]
[1674075005132,0.966462,20694.0,20693.0,0.90210361]
[1674075005610,0.966462,20694.0,20693.0,1.20210361]
[1674075005893,0.483231,20694.0,20693.0,1.20210361]
[1674075006179,0.966462,20694.0,20693.0,1.20210361]
[1674075007294,0.483231,20694.0,20693.0,1.20210361]
[1674075007578,0.966462,20694.0,20693.0,1.20210361]
[1674075007860,0.483231,20694.0,20693.0,1.20210361]
[1674075008170,0.966462,20694.0,20693.0,1.19710361]
[1674075008418,0.483231,20694.0,20693.0,1.19710361]
[1674075008700,0.483169,20697.0,20693.0,1.54142458]
[1674075008979,0.483122,20699.0,20696.0,0.1307]
[1674075009460,0.966203,20700.0,20697.0,1.13238366]
[1674075009488,0.483094,20700.0,20697.0,1.14088366]
[1674075009748,0.00447589,20703.0,20699.0,0.1307]
[1674075010023,0.483091,20700.0,20699.0,0.1307]
[1674075010311,0.483091,20700.0,20699.0,0.445415]
[1674075010807,0.966182,20700.0,20699.0,0.614715]
[1674075010812,0.966182,20700.0,20699.0,0.3085]
[1674075011088,0.966182,20700.0,20699.0,0.0085]
[1674075011362,0.966182,20700.0,20697.0,0.0085]
[1674075011663,0.00447589,20703.0,20699.0,0.47720169]
[1674075012209,0.48751689,20703.0,20701.0,0.6342]
[1674075012215,0.97053789,20703.0,20701.0,0.1306]
[1674075012492,0.97053789,20703.0,20702.0,0.80476869]
[1674075012771,0.97053789,20703.0,20702.0,0.327567]
[1674075013056,0.00447589,20703.0,20702.0,1.63338966]
[1674075013347,0.00447589,20703.0,20702.0,1.43906869]
[1674075013629,0.00447589,20703.0,20702.0,1.58906869]
[1674075013935,0.00447589,20703.0,20702.0,2.00666869]
[1674075014228,0.00447589,20703.0,20702.0,2.52189941]
[1674075014516,0.00447589,20703.0,20702.0,2.03885441]
[1674075015076,0.00447589,20703.0,20702.0,10.10666869]
[1674075015346,0.00447589,20703.0,20702.0,9.40815441]
[1674075016228,0.00447589,20703.0,20702.0,1.74566869]
[1674075016518,0.00447589,20703.0,20702.0,9.37636869]
[1674075016805,0.00447589,20703.0,20702.0,9.50706869]
[1674075017086,0.00447589,20703.0,20702.0,9.53925441]
[1674075017364,0.00447589,20703.0,20702.0,9.62184634]
[1674075017662,0.00447589,20703.0,20702.0,9.53925441]
[1674075017957,0.05,20705.0,20702.0,12.63140902]
[1674075018257,0.05,20705.0,20704.0,2.65848139]
[1674075018789,0.05,20705.0,20704.0,4.52686468]
[1674075018797,0.05,20705.0,20704.0,4.45560111]
[1674075019086,0.05,20705.0,20704.0,3.56775141]
[1674075019375,0.05,20705.0,20704.0,3.40496569]
[1674075020163,0.05,20705.0,20704.0,4.01346569]
[1674075020198,0.05,20705.0,20704.0,4.25840557]
[1674075020489,0.05,20705.0,20704.0,4.89059129]
[1674075020771,0.00447589,20709.0,20708.0,1.26810169]
[1674075021057,0.00447589,20709.0,20708.0,3.90325566]
[1674075021348,0.00447589,20709.0,20708.0,3.70893469]
[1674075021627,0.00447589,20709.0,20708.0,3.46751469]
[1674075021908,0.00447589,20709.0,20708.0,2.98460969]
[1674075022218,0.00447589,20709.0,20708.0,1.91440469]
[1674075022508,0.00447589,20709.0,20708.0,1.29229969]
[1674075023068,0.00447589,20709.0,20708.0,2.43464469]
[1674075023628,0.00447589,20709.0,20708.0,2.73464469]
[1674075024422,0.00447589,20709.0,20708.0,3.50603041]
[1674075024705,0.00447589,20709.0,20708.0,3.97237847]
[1674075024978,0.00447589,20709.0,20708.0,10.97384469]
[1674075025546,0.00447589,20709.0,20708.0,10.37374363]
[1674075026109,0.0043283,20712.0,20708.0,10.37374363]
[1674075026110,0.0043283,20712.0,20709.0,0.15]
[1674075026390,0.0043283,20712.0,20711.0,1.76938063]
[1674075026851,0.0043283,20712.0,20711.0,3.93001069]
[1674075026855,8.3e-06,20712.0,20711.0,4.16501738]
[1674075027135,0.00456468,20714.0,20711.0,11.47069641]
[1674075027408,0.00456468,20714.0,20713.0,1.52800063]
[1674075027696,0.00456468,20714.0,20713.0,4.05412669]
[1674075027976,0.00456468,20714.0,20713.0,4.21262669]
[1674075028554,0.00456468,20714.0,20713.0,4.62507863]
[1674075029104,0.00455253,20716.0,20713.0,5.09142669]
[1674075029256,0.00455253,20716.0,20715.0,0.00051466]
[1674075029268,0.00455253,20716.0,20715.0,0.16334466]
[1674075029546,0.00455253,20716.0,20715.0,4.29365929]
[1674075029817,0.00455253,20716.0,20715.0,5.24785929]
[1674075030375,0.00455253,20716.0,20715.0,4.64785929]
[1674075030870,0.00455253,20716.0,20715.0,4.65635929]
[1674075031427,0.00455253,20716.0,20715.0,4.17361829]
[1674075032246,0.00455253,20716.0,20715.0,4.20580401]
[1674075033113,0.00455253,20716.0,20715.0,3.00209401]
[1674075033422,0.00455253,20716.0,20715.0,2.30370301]
[1674075033718,0.00455253,20716.0,20715.0,2.27151729]
[1674075034003,0.00455253,20716.0,20715.0,1.98421729]
[1674075035163,0.00455253,20716.0,20715.0,9.48421729]
[1674075035442,0.00455253,20716.0,20715.0,10.10503826]
[1674075035723,0.00456468,20718.0,20717.0,0.50349894]
[1674075036027,0.00456468,20718.0,20717.0,3.6318426]
[1674075036315,0.0043283,20720.0,20719.0,0.79079894]
[1674075036586,1.667e-05,20721.0,20719.0,12.71222866]
[1674075036851,0.00500374,20724.0,20721.0,0.79079894]
[1674075037125,0.00500374,20724.0,20723.0,1.77062063]
[1674075037425,0.00500374,20724.0,20723.0,2.91012463]
[1674075037694,0.00500374,20724.0,20723.0,3.24231035]
[1674075038233,0.00500374,20724.0,20723.0,10.74231035]
[1674075039042,0.00500374,20724.0,20723.0,11.34231035]
[1674075039668,0.00500374,20724.0,20723.0,11.30902463]
[1674075039949,0.00500374,20724.0,20723.0,12.20442463]
[1674075040468,0.00500374,20724.0,20723.0,12.23661035]
[1674075040696,3.74e-06,20724.0,20723.0,12.23661035]
[1674075040788,0.00500374,20725.0,20723.0,12.70282719]
[1674075040791,0.00530859,20733.0,20724.0,0.15]
[1674075041041,0.00530859,20733.0,20732.0,1.50915063]
[1674075041332,0.00530859,20733.0,20732.0,2.9840356]
[1674075041538,0.00530859,20733.0,20732.0,2.78971463]
[1674075041773,0.00530859,20733.0,20732.0,2.54856463]
[1674075042494,0.00530859,20733.0,20732.0,1.58387263]
[1674075042719,0.00530859,20733.0,20732.0,1.59237263]
[1674075042968,0.00530859,20733.0,20732.0,1.78741863]
[1674075043222,0.00530859,20733.0,20732.0,1.93741863]
[1674075043943,0.00530859,20733.0,20732.0,2.22471863]
[1674075044181,0.00530859,20733.0,20732.0,2.25690435]
[1674075044899,0.00530859,20733.0,20732.0,9.60690435]
[1674075045431,0.00530859,20733.0,20732.0,10.20690435]
[1674075046154,0.00530859,20733.0,20732.0,10.08925035]
[1674075047166,0.00530859,20733.0,20732.0,2.24856463]
[1674075047412,0.00530859,20733.0,20732.0,0.47720169]
[1674075047662,0.00530859,20733.0,20732.0,0.98080169]
[1674075047898,0.00530859,20733.0,20732.0,1.59507869]
[1674075048146,0.00530859,20733.0,20732.0,2.55977069]
[1674075048612,0.00530859,20733.0,20732.0,2.56827069]
[1674075048857,0.00530859,20733.0,20732.0,2.86827069]
[1674075049175,0.00530859,20733.0,20732.0,2.28097069]
[1674075050004,0.00530859,20733.0,20732.0,1.77737069]
[1674075050285,0.78336,20736.0,20732.0,1.77737069]
[1674075050286,0.6,20736.0,20732.0,1.77737069]
[1674075050594,0.6,20736.0,20733.0,0.48570169]
[1674075050876,0.6,20736.0,20733.0,0.19432097]
[1674075051161,1.21739159,20739.0,20734.0,0.79672869]
[1674075051443,1.69957459,20739.0,20735.0,0.67152266]
[1674075051789,1.69957459,20739.0,20736.0,0.67152266]
[1674075051790,0.48749159,20739.0,20736.0,0.67152266]
[1674075052077,0.00530859,20739.0,20736.0,0.67152266]
[1674075052361,0.00530859,20739.0,20737.0,0.78570169]
[1674075054387,0.00530859,20739.0,20738.0,0.80358369]
[1674075054690,0.00530859,20739.0,20738.0,1.11208369]
[1674075055829,0.00530859,20739.0,20738.0,1.59428969]
[1674075056108,0.00530859,20739.0,20738.0,2.07649569]
[1674075056400,0.00530859,20739.0,20738.0,3.01550666]
[1674075056677,0.00530859,20739.0,20738.0,3.14067141]
[1674075057165,0.00530859,20739.0,20738.0,2.89958141]
[1674075057434,0.00530859,20739.0,20738.0,2.86739569]
[1674075059408,0.00530859,20739.0,20738.0,2.28009569]
[1674075059950,0.00530859,20739.0,20738.0,9.78009569]
[1674075060231,0.00530859,20739.0,20738.0,10.02118569]
[1674075060501,0.00530859,20739.0,20738.0,10.90848569]
[1674075060768,0.00530859,20739.0,20738.0,11.20848569]
[1674075061637,0.00474005,20739.0,20738.0,11.83771947]
[1674075061917,0.00474005,20739.0,20738.0,11.37137141]
[1674075062312,0.00474005,20739.0,20738.0,11.02225824]
[1674075062851,0.00474005,20739.0,20738.0,10.73918569]
[1674075063735,0.00474005,20739.0,20738.0,10.06739569]
[1674075064009,0.00474005,20739.0,20738.0,2.27159569]
[1674075064297,0.33550905,20739.0,20735.0,0.482261]
[1674075064576,0.33550905,20739.0,20738.0,0.47720169]
[1674075064577,0.00474005,20739.0,20738.0,0.47720169]
[1674075065140,0.00474005,20739.0,20738.0,0.80406969]
[1674075065362,0.00474005,20739.0,20738.0,0.326868]
[1674075065582,0.00474005,20739.0,20736.0,7.982251]
[1674075065803,0.00474005,20739.0,20735.0,0.48227]
[1674075066249,0.00474005,20739.0,20734.0,0.985883]
[1674075066475,0.00474005,20739.0,20737.0,0.47720169]
[1674075067675,0.00474005,20739.0,20735.0,0.15]
[1674075068018,0.34463,20738.0,20734.0,0.19432097]
[1674075068022,0.00474005,20739.0,20738.0,0.47720169]
[1674075068465,0.00474005,20739.0,20738.0,0.78570169]
[1674075069422,0.00474005,20739.0,20738.0,0.3085]
[1674075070132,0.00474005,20739.0,20738.0,0.0085]
[1674075070633,0.00474005,20739.0,20736.0,0.0085]
[1674075070847,0.00474005,20739.0,20736.0,0.48570169]
[1674075072311,0.00474005,20739.0,20737.0,0.326883]
[1674075072581,0.00474005,20739.0,20736.0,0.48570169]
[1674075072955,0.48693505,20739.0,20737.0,0.3]
[1674075072961,0.00474005,20739.0,20737.0,0.3]
[1674075073536,0.00474005,20739.0,20738.0,0.47720169]
[1674075073819,0.00474005,20739.0,20738.0,1.75011369]
[1674075074085,0.00474005,20739.0,20738.0,2.05152969]
[1674075074650,0.00474005,20739.0,20738.0,0.790706]
[1674075075217,0.00474005,20739.0,20738.0,1.26790769]
[1674075075672,0.00474005,20739.0,20738.0,1.58656169]
[1674075075969,0.00474005,20739.0,20738.0,1.73656169]
[1674075076247,0.00474005,20739.0,20738.0,2.21876769]
[1674075076535,0.00474005,20739.0,20738.0,2.72236769]
[1674075077050,0.00474005,20739.0,20738.0,2.75455341]
[1674075077354,0.00474005,20739.0,20738.0,2.72236769]
[1674075077636,0.00474005,20739.0,20738.0,2.72226654]
[1674075079062,0.00474005,20739.0,20738.0,2.57226654]
[1674075079341,0.00474005,20739.0,20738.0,10.07226654]
[1674075080186,0.00474005,20739.0,20738.0,9.56866654]
[1674075080463,0.00474005,20739.0,20738.0,1.76866654]
[1674075080743,0.00474005,20739.0,20738.0,1.45001254]
[1674075081048,0.00474005,20739.0,20738.0,1.60001254]
[1674075081330,0.00474005,20739.0,20738.0,1.92165154]
[1674075081620,0.00474005,20739.0,20738.0,2.22165154]
[1674075081909,0.00474005,20739.0,20738.0,2.07165154]
[1674075083075,0.00474005,20739.0,20738.0,1.77165154]
[1674075083368,0.00474005,20739.0,20738.0,1.286051]
[1674075083881,0.00038781,20740.0,20738.0,1.286051]
[1674075084174,0.00038781,20740.0,20739.0,0.45]
[1674075084739,0.00038781,20740.0,20739.0,1.90006769]
[1674075085253,0.00038781,20740.0,20739.0,9.72237269]
[1674075087266,0.00038781,20740.0,20739.0,10.22597269]
[1674075088683,7.81e-06,20740.0,20739.0,11.04896907]
[1674075088970,0.0057414,20742.0,20740.0,5.219e-05]
[1674075089282,0.0057414,20742.0,20741.0,2.42720969]
[1674075089564,0.0057414,20742.0,20741.0,3.05941069]
[1674075089846,0.0057414,20742.0,20741.0,2.55581069]
[1674075090123,0.0057414,20742.0,20741.0,0.78570169]
[1674075090637,0.0057414,20742.0,20741.0,2.05849369]
[1674075090639,0.0057414,20742.0,20741.0,1.75849369]
[1674075091483,0.0057414,20742.0,20741.0,1.87380863]
[1674075091979,0.0057414,20742.0,20741.0,9.37380863]
[1674075091989,0.0057414,20742.0,20741.0,9.69625844]
[1674075092280,0.0057414,20742.0,20741.0,10.57818883]
[1674075092550,0.0057414,20742.0,20741.0,10.88174051]
[1674075092826,0.0057414,20742.0,20741.0,11.36642729]
[1674075093417,0.0057414,20742.0,20741.0,11.59670705]
[1674075093987,0.0057414,20742.0,20741.0,11.71158871]
[1674075094278,1.4e-06,20742.0,20741.0,11.19345926]
[1674075094552,1.4e-06,20742.0,20741.0,11.61222368]
[1674075094832,1.4e-06,20742.0,20741.0,12.09530149]
[1674075095118,1.4e-06,20742.0,20741.0,12.96470149]
[1674075095403,1.4e-06,20742.0,20741.0,11.61099822]
[1674075095691,1.4e-06,20742.0,20741.0,11.82697171]
[1674075095968,1.4e-06,20742.0,20741.0,12.11503613]
[1674075096535,1.4e-06,20742.0,20741.0,11.39982072]
[1674075096809,1.4e-06,20742.0,20741.0,11.15271752]
[1674075097104,1.4e-06,20742.0,20741.0,11.99818372]
[1674075097677,0.0037697,20743.0,20741.0,11.99809557]
[1674075097961,0.0037697,20743.0,20742.0,1.20646253]
[1674075098233,0.0037697,20743.0,20742.0,2.52563511]
[1674075098766,0.0037697,20743.0,20742.0,2.35287425]
[1674075098792,0.0037697,20743.0,20742.0,2.52563511]
[1674075099064,9.7e-06,20743.0,20742.0,10.49308244]
[1674075099338,9.7e-06,20743.0,20742.0,10.72354295]
[1674075099907,9.7e-06,20743.0,20742.0,10.83884651]
[1674075100202,9.7e-06,20743.0,20742.0,10.55078209]
[1674075100485,9.7e-06,20743.0,20742.0,10.49291871]
[1674075101851,9.7e-06,20743.0,20742.0,10.55078209]
[1674075102128,0.00564776,20748.0,20743.0,5.03e-05]
[1674075102397,0.00564776,20748.0,20747.0,0.52829]
[1674075102676,0.00564776,20748.0,20747.0,3.45457266]
[1674075102963,0.00564776,20748.0,20747.0,3.26025169]
[1674075103225,0.00564776,20748.0,20747.0,10.76025169]
[1674075103764,0.00564776,20748.0,20747.0,11.36025169]
[1674075104605,0.00564776,20748.0,20747.0,11.82659975]
[1674075104870,0.00564776,20748.0,20747.0,10.46025169]
[1674075105996,0.00564776,20748.0,20747.0,10.49242681]
[1674075106271,0.00564776,20748.0,20747.0,10.79242681]
[1674075107996,0.00564776,20748.0,20747.0,10.21926169]
[1674075108279,0.00564776,20748.0,20747.0,2.42346169]
[1674075108555,0.00564776,20748.0,20747.0,1.92319269]
[1674075108838,0.00564776,20748.0,20747.0,9.42319269]
[1674075109149,0.11184776,20748.0,20747.0,7.5]
[1674075109421,0.11184776,20748.0,20744.0,0.482044]
[1674075109422,0.33010266,20748.0,20744.0,0.482044]
[1674075109920,0.460342,20747.0,20744.0,0.482044]
[1674075109922,0.460342,20747.0,20744.0,0.964111]
[1674075110197,0.1303,20747.0,20743.0,0.4821283]
[1674075110510,0.96207866,20748.0,20743.0,0.4821283]
[1674075110511,0.1307,20745.0,20743.0,0.4821283]
[1674075110794,0.15,20747.0,20743.0,0.9642183]
[1674075111088,0.22390266,20748.0,20744.0,0.80143469]
[1674075111375,0.079,20746.0,20744.0,0.67152266]
[1674075111655,0.079,20746.0,20745.0,0.3]
[1674075111946,0.30290266,20748.0,20745.0,0.3085]
[1674075112226,0.30290266,20748.0,20745.0,0.98486297]
[1674075112534,0.30290266,20748.0,20745.0,0.790542]
[1674075112809,0.08464776,20748.0,20745.0,1.46690597]
[1674075113113,0.08464776,20748.0,20745.0,1.272585]
[1674075113395,0.00564776,20748.0,20746.0,0.15]
[1674075113667,0.00564776,20748.0,20747.0,0.490497]
[1674075113959,0.00564776,20748.0,20747.0,1.272494]
[1674075115129,0.00564776,20748.0,20747.0,8.290497]
[1674075115401,0.00564776,20748.0,20747.0,8.609971]
[1674075115983,0.00564776,20748.0,20747.0,9.091968]
[1674075116277,0.00564776,20748.0,20747.0,8.609971]
[1674075116570,0.00564776,20748.0,20747.0,0.627974]
[1674075116861,0.00564776,20748.0,20745.0,0.964049]
[1674075116862,0.29664857,20748.0,20745.0,0.964049]
[1674075117152,0.318626,20747.0,20745.0,0.482024]
[1674075117434,0.29664857,20748.0,20744.0,0.482045]
[1674075117722,0.29664857,20748.0,20744.0,0.482065]
[1674075118000,0.29664857,20748.0,20744.0,1.15843497]
[1674075118346,0.29664857,20748.0,20745.0,0.326267]
[1674075118619,0.29664857,20748.0,20746.0,0.3]
[1674075118884,0.29664857,20748.0,20745.0,0.782036]
[1674075120553,0.29664857,20748.0,20745.0,1.264079]
[1674075120885,0.08464776,20748.0,20745.0,1.264079]
[1674075121107,0.08464776,20748.0,20746.0,0.81241769]
[1674075121108,0.00564776,20748.0,20746.0,0.81241769]
[1674075121419,0.00564776,20748.0,20747.0,1.263994]
[1674075121697,0.00564776,20748.0,20747.0,0.635198]
[1674075122286,0.00564776,20748.0,20747.0,0.3]
[1674075122287,0.08464776,20748.0,20747.0,0.3]
[1674075122575,0.08456642,20748.0,20746.0,0.3]
[1674075123407,0.08456642,20748.0,20746.0,0.49432097]
[1674075123679,0.08456642,20748.0,20747.0,0.320583]
[1674075123680,0.00556642,20748.0,20747.0,0.320583]
[1674075123951,0.00556642,20748.0,20747.0,0.620583]
[1674075124244,0.00556642,20748.0,20747.0,1.10258]
[1674075125005,0.00556642,20748.0,20747.0,2.26459966]
[1674075125009,0.00556642,20748.0,20747.0,2.31127869]
[1674075125319,0.00556642,20748.0,20747.0,2.92486302]
[1674075125614,0.00500098,20748.0,20747.0,3.5333724]
[1674075125887,0.00500098,20748.0,20747.0,3.59124118]
[1674075126341,9.8e-07,20748.0,20747.0,3.8793056]
[1674075126617,9.8e-07,20748.0,20747.0,3.18247536]
[1674075126921,9.8e-07,20748.0,20747.0,10.68247536]
[1674075127171,9.8e-07,20748.0,20747.0,10.39597171]
[1674075127453,9.8e-07,20748.0,20747.0,10.68273032]
[1674075127740,9.8e-07,20748.0,20747.0,11.39797293]
[1674075128021,9.8e-07,20748.0,20747.0,11.5132125]
[1674075128314,0.00752763,20749.0,20748.0,0.50189902]
[1674075128593,7.63e-06,20749.0,20748.0,3.24123053]
[1674075129179,7.63e-06,20749.0,20748.0,4.10444759]
[1674075129180,7.63e-06,20749.0,20748.0,11.9936406]
[1674075129468,7.63e-06,20749.0,20748.0,11.70559144]
[1674075129749,7.63e-06,20749.0,20748.0,11.87835179]
[1674075130038,7.63e-06,20749.0,20748.0,11.9936406]
[1674075130327,7.63e-06,20749.0,20748.0,11.87835269]
[1674075130614,7.63e-06,20749.0,20748.0,11.9936406]
[1674075130910,7.63e-06,20749.0,20748.0,11.76319675]
[1674075131990,7.63e-06,20749.0,20748.0,11.99354492]
[1674075132290,7.63e-06,20749.0,20748.0,11.70549576]
[1674075132568,7.63e-06,20749.0,20748.0,11.99354492]
[1674075132860,7.63e-06,20749.0,20748.0,11.70549576]
[1674075133239,7.63e-06,20749.0,20748.0,12.47826194]
[1674075133520,7.63e-06,20749.0,20748.0,12.30549576]
[1674075133795,7.63e-06,20749.0,20748.0,12.47822912]
[1674075134066,7.63e-06,20749.0,20748.0,11.34788009]
[1674075134332,7.63e-06,20749.0,20748.0,11.33293777]
[1674075134611,7.63e-06,20749.0,20748.0,9.51487151]
[1674075134898,7.63e-06,20749.0,20748.0,9.39971383]
[1674075135162,7.63e-06,20749.0,20748.0,9.04954871]
[1674075135449,7.63e-06,20749.0,20748.0,1.27695602]
[1674075135793,7.63e-06,20749.0,20748.0,0.96400702]
[1674075136009,7.63e-06,20749.0,20748.0,5.902e-05]
[1674075136603,7.63e-06,20749.0,20748.0,0.48203302]
[1674075137315,7.63e-06,20749.0,20748.0,5.902e-05]
[1674075138161,0.47789763,20749.0,20748.0,5.902e-05]
[1674075138671,0.47789763,20749.0,20748.0,0.30005902]
[1674075138672,0.32789763,20749.0,20748.0,0.30005902]
[1674075138960,7.63e-06,20749.0,20748.0,0.30005902]
[1674075140995,7.63e-06,20749.0,20748.0,5.902e-05]
[1674075141601,0.45125963,20749.0,20748.0,5.902e-05]
[1674075141879,1.41515963,20749.0,20748.0,5.902e-05]
[1674075142158,0.93320963,20749.0,20748.0,5.902e-05]
[1674075142451,1.08320963,20749.0,20748.0,5.902e-05]
[1674075142752,0.60125963,20749.0,20748.0,5.902e-05]
[1674075143022,0.45125963,20749.0,20748.0,5.902e-05]
[1674075144406,0.47165963,20749.0,20748.0,5.902e-05]
[1674075144679,0.32165963,20749.0,20748.0,5.902e-05]
[1674075144958,0.47165963,20749.0,20748.0,5.902e-05]
[1674075146054,0.32165963,20749.0,20748.0,5.902e-05]
[1674075146337,0.80360963,20749.0,20748.0,5.902e-05]
[1674075146619,1.41455963,20749.0,20748.0,5.902e-05]
[1674075146899,1.59220986,20749.0,20748.0,5.902e-05]
[1674075147461,1.11025986,20749.0,20748.0,5.902e-05]
[1674075148050,1.74220986,20749.0,20748.0,5.902e-05]
[1674075148327,1.87230986,20749.0,20748.0,5.902e-05]
[1674075148598,2.94655963,20749.0,20748.0,5.902e-05]
[1674075148878,3.122093,20749.0,20748.0,5.902e-05]
[1674075150629,2.94655963,20749.0,20748.0,5.902e-05]
[1674075150920,0.15,20747.0,20743.0,5.03e-05]
[1674075151199,1.276024,20746.0,20743.0,5.03e-05]
[1674075151493,0.1289,20744.0,20743.0,5.03e-05]
[1674075151775,0.45186,20744.0,20743.0,5.03e-05]
[1674075152406,1.415994,20744.0,20743.0,5.03e-05]
[1674075153434,1.565994,20744.0,20743.0,5.03e-05]
[1674075153749,2.346394,20744.0,20743.0,5.03e-05]
[1674075154036,1.93544265,20744.0,20743.0,5.03e-05]
[1674075155177,1.65574265,20744.0,20743.0,5.03e-05]
[1674075155454,1.65574265,20744.0,20739.0,0.00818148]
[1674075155733,0.1298,20742.0,20739.0,0.00818148]